[Event "*** MasterClass Titled Tuesday Blitz"]
[Site "Chess.com"]
[Date "2017.12.05"]
[Round "1"]
[White "josemoramoron"]
[Black "chito89"]
[Result "1/2-1/2"]
[WhiteElo "2176"]
[BlackElo "2574"]
[TimeControl "180+2"]
[EndTime "14:24:03 PST"]
[Termination "Game drawn - insufficient material"]

1. e4 {[%clk 0:02:42.5]} 1... c5 {[%clk 0:02:57.9]} 2. Nf3 {[%clk 0:02:43.4]}
2... e6 {[%clk 0:02:58.1]} 3. d4 {[%clk 0:02:44]} 3... cxd4 {[%clk 0:02:56.9]}
4. Nxd4 {[%clk 0:02:45.9]} 4... Nc6 {[%clk 0:02:57]} 5. Nc3 {[%clk 0:02:45.5]}
5... Qc7 {[%clk 0:02:57.9]} 6. Be3 {[%clk 0:02:39.2]} 6... a6 {[%clk 0:02:55.9]}
7. Qf3 {[%clk 0:02:37.9]} 7... b5 {[%clk 0:02:55.5]} 8. O-O-O {[%clk 0:02:29]}
8... Bb7 {[%clk 0:02:53.6]} 9. Qg3 {[%clk 0:02:12.7]} 9... Qxg3 {[%clk
0:02:42.5]} 10. hxg3 {[%clk 0:02:13.7]} 10... Nxd4 {[%clk 0:02:38.3]} 11. Rxd4
{[%clk 0:01:57.8]} 11... Bc5 {[%clk 0:02:31.1]} 12. Rd3 {[%clk 0:01:58.8]} 12...
Rc8 {[%clk 0:02:31.3]} 13. f3 {[%clk 0:01:54.4]} 13... Ne7 {[%clk 0:02:28]} 14.
Bxc5 {[%clk 0:01:51.2]} 14... Rxc5 {[%clk 0:02:28]} 15. Be2 {[%clk 0:01:47.8]}
15... h5 {[%clk 0:02:20.1]} 16. a3 {[%clk 0:01:40]} 16... Ng6 {[%clk 0:02:16.1]}
17. f4 {[%clk 0:01:30.3]} 17... h4 {[%clk 0:02:14.7]} 18. Re3 {[%clk 0:00:54.8]}
18... hxg3 {[%clk 0:02:11.5]} 19. Rxh8+ {[%clk 0:00:55.4]} 19... Nxh8 {[%clk
0:02:12.9]} 20. Rxg3 {[%clk 0:00:53.1]} 20... Ng6 {[%clk 0:02:14.4]} 21. f5
{[%clk 0:00:43.2]} 21... exf5 {[%clk 0:02:14.4]} 22. exf5 {[%clk 0:00:44.3]}
22... Rxf5 {[%clk 0:02:15.7]} 23. Bd3 {[%clk 0:00:45.7]} 23... Rf6 {[%clk
0:02:08.8]} 24. Ne4 {[%clk 0:00:33.1]} 24... Rc6 {[%clk 0:01:53.6]} 25. b4
{[%clk 0:00:25.8]} 25... d6 {[%clk 0:01:49.5]} 26. Kd2 {[%clk 0:00:19.3]} 26...
Kf8 {[%clk 0:01:48.9]} 27. Ng5 {[%clk 0:00:20.1]} 27... Ne5 {[%clk 0:01:49]} 28.
Rh3 {[%clk 0:00:18]} 28... Nc4+ {[%clk 0:01:48.6]} 29. Ke2 {[%clk 0:00:18.2]}
29... Nxa3 {[%clk 0:01:44.5]} 30. Rf3 {[%clk 0:00:16]} 30... f6 {[%clk
0:01:42.2]} 31. Ne6+ {[%clk 0:00:16.7]} 31... Ke7 {[%clk 0:01:40.4]} 32. Re3
{[%clk 0:00:16.6]} 32... Nxc2 {[%clk 0:01:39.2]} 33. Bxc2 {[%clk 0:00:10.6]}
33... Rxc2+ {[%clk 0:01:40.5]} 34. Kd3 {[%clk 0:00:12.1]} 34... Rxg2 {[%clk
0:01:31]} 35. Nc5+ {[%clk 0:00:13]} 35... Kd8 {[%clk 0:01:28.3]} 36. Nxb7+
{[%clk 0:00:14.9]} 36... Kd7 {[%clk 0:01:29.8]} 37. Kc3 {[%clk 0:00:15]} 37...
f5 {[%clk 0:01:26.9]} 38. Rd3 {[%clk 0:00:16.3]} 38... Rg6 {[%clk 0:01:28.4]}
39. Nc5+ {[%clk 0:00:17.2]} 39... Kc6 {[%clk 0:01:29.8]} 40. Nb3 {[%clk
0:00:16.8]} 40... f4 {[%clk 0:01:29]} 41. Kd4 {[%clk 0:00:18]} 41... Re6 {[%clk
0:01:23.1]} 42. Kc3 {[%clk 0:00:17.9]} 42... Re4 {[%clk 0:01:19.9]} 43. Kd2
{[%clk 0:00:13.3]} 43... Rxb4 {[%clk 0:01:19.4]} 44. Rc3+ {[%clk 0:00:12.3]}
44... Rc4 {[%clk 0:01:19.6]} 45. Rd3 {[%clk 0:00:12.9]} 45... g5 {[%clk
0:01:16.5]} 46. Na5+ {[%clk 0:00:14]} 46... Kc5 {[%clk 0:01:16.8]} 47. Nxc4
{[%clk 0:00:15.2]} 47... bxc4 {[%clk 0:01:18.1]} 48. Ra3 {[%clk 0:00:15.2]}
48... g4 {[%clk 0:01:17]} 49. Kc3 {[%clk 0:00:15.2]} 49... Kd5 {[%clk 0:01:14]}
50. Ra5+ {[%clk 0:00:13.5]} 50... Ke4 {[%clk 0:01:14.9]} 51. Rxa6 {[%clk
0:00:14.2]} 51... g3 {[%clk 0:01:14.4]} 52. Rxd6 {[%clk 0:00:13.6]} 52... g2
{[%clk 0:01:15.5]} 53. Rg6 {[%clk 0:00:13.4]} 53... Kf3 {[%clk 0:01:12.6]} 54.
Kxc4 {[%clk 0:00:13.8]} 54... Kf2 {[%clk 0:01:13.7]} 55. Kd3 {[%clk 0:00:14.6]}
55... f3 {[%clk 0:01:13.7]} 56. Ke4 {[%clk 0:00:15.6]} 56... Ke2 {[%clk
0:01:15]} 57. Rg3 {[%clk 0:00:12.5]} 57... f2 {[%clk 0:01:12.8]} 58. Rxg2 {[%clk
0:00:13.7]} 58... Ke1 {[%clk 0:01:14.1]} 59. Rxf2 {[%clk 0:00:12.8]} 59... Kxf2
{[%clk 0:01:15.5]} 1/2-1/2

[Event "*** MasterClass Titled Tuesday Blitz"]
[Site "Chess.com"]
[Date "2017.12.05"]
[Round "1"]
[White "benhal"]
[Black "moro182"]
[Result "0-1"]
[WhiteElo "2211"]
[BlackElo "2617"]
[TimeControl "180+2"]
[EndTime "14:24:09 PST"]
[Termination "moro182 won by resignation"]

1. e4 {[%clk 0:03:01.9]} 1... e5 {[%clk 0:03:00.4]} 2. Nf3 {[%clk 0:03:00.3]}
2... Nc6 {[%clk 0:03:01.2]} 3. Nc3 {[%clk 0:03:00.8]} 3... Nf6 {[%clk 0:03:01]}
4. Bb5 {[%clk 0:03:01.3]} 4... Bd6 {[%clk 0:03:01.7]} 5. d3 {[%clk 0:03:01.4]}
5... a6 {[%clk 0:02:59.6]} 6. Ba4 {[%clk 0:03:00.2]} 6... b5 {[%clk 0:03:00.7]}
7. Bb3 {[%clk 0:03:00.8]} 7... Na5 {[%clk 0:03:02.3]} 8. Bg5 {[%clk 0:02:54.2]}
8... Nxb3 {[%clk 0:03:01.2]} 9. axb3 {[%clk 0:02:56.1]} 9... c6 {[%clk
0:02:59.7]} 10. Ne2 {[%clk 0:02:54.5]} 10... h6 {[%clk 0:03:00.3]} 11. Bd2
{[%clk 0:02:52.6]} 11... O-O {[%clk 0:02:58.4]} 12. Ng3 {[%clk 0:02:51.3]} 12...
Bc7 {[%clk 0:02:46.5]} 13. O-O {[%clk 0:02:51.1]} 13... d5 {[%clk 0:02:46.2]}
14. Re1 {[%clk 0:02:50.1]} 14... Kh7 {[%clk 0:02:38.5]} 15. h3 {[%clk
0:02:44.7]} 15... Re8 {[%clk 0:02:34.5]} 16. Nh2 {[%clk 0:02:35.8]} 16... c5
{[%clk 0:02:29.1]} 17. Be3 {[%clk 0:02:30.6]} 17... d4 {[%clk 0:02:28.6]} 18.
Bd2 {[%clk 0:02:30.7]} 18... Be6 {[%clk 0:02:24.9]} 19. Qf3 {[%clk 0:02:28.6]}
19... g6 {[%clk 0:02:09.8]} 20. Ng4 {[%clk 0:02:17.3]} 20... Nxg4 {[%clk
0:02:03]} 21. hxg4 {[%clk 0:02:17.9]} 21... Qh4 {[%clk 0:02:03.4]} 22. Nf5
{[%clk 0:02:08.2]} 22... gxf5 {[%clk 0:01:59.5]} 23. exf5 {[%clk 0:02:10.1]}
23... Bd7 {[%clk 0:01:56]} 24. Qd5 {[%clk 0:02:03.7]} 24... Qe7 {[%clk
0:01:45.9]} 25. b4 {[%clk 0:02:02.1]} 25... c4 {[%clk 0:01:25]} 26. dxc4 {[%clk
0:02:00.1]} 26... bxc4 {[%clk 0:01:26.9]} 27. Qxc4 {[%clk 0:01:57.8]} 27... Bb5
{[%clk 0:01:26.6]} 28. Qb3 {[%clk 0:01:53]} 28... e4 {[%clk 0:01:23.6]} 29. Qh3
{[%clk 0:01:51.5]} 29... Qd6 {[%clk 0:01:17.9]} 30. Qh5 {[%clk 0:01:46.4]} 30...
Re7 {[%clk 0:00:56]} 31. Bg5 {[%clk 0:01:37.7]} 31... Qh2+ {[%clk 0:00:52.2]}
32. Qxh2 {[%clk 0:01:33.5]} 32... Bxh2+ {[%clk 0:00:54.1]} 33. Kxh2 {[%clk
0:01:35.1]} 33... hxg5 {[%clk 0:00:55.7]} 34. Rad1 {[%clk 0:01:35.1]} 34... Rd8
{[%clk 0:00:55.9]} 35. b3 {[%clk 0:01:32.4]} 35... d3 {[%clk 0:00:50.8]} 36. c4
{[%clk 0:01:32.5]} 36... Bc6 {[%clk 0:00:49.5]} 37. Kg3 {[%clk 0:01:33.8]} 37...
Rb7 {[%clk 0:00:49.6]} 38. Rh1+ {[%clk 0:01:32.6]} 38... Kg7 {[%clk 0:00:50.3]}
39. Rh5 {[%clk 0:01:33.5]} 39... Rxb4 {[%clk 0:00:48.4]} 40. Rxg5+ {[%clk
0:01:32.9]} 40... Kf6 {[%clk 0:00:48.9]} 41. Rh5 {[%clk 0:01:33.9]} 41... Ke5
{[%clk 0:00:49.1]} 42. f6+ {[%clk 0:01:28.6]} 42... Kd4 {[%clk 0:00:46.4]} 43.
Rh7 {[%clk 0:01:27.1]} 43... Rb7 {[%clk 0:00:40.7]} 44. g5 {[%clk 0:01:23.7]}
44... Kc3 {[%clk 0:00:41.8]} 45. Kf4 {[%clk 0:01:20.8]} 45... Kc2 {[%clk
0:00:42.1]} 46. Rhh1 {[%clk 0:01:21.9]} 46... d2 {[%clk 0:00:42.4]} 47. Ke3
{[%clk 0:01:22.5]} 47... Rxb3+ {[%clk 0:00:43.1]} 48. Ke2 {[%clk 0:01:23.7]}
48... Rc3 {[%clk 0:00:36.6]} 49. g6 {[%clk 0:01:24.5]} 49... fxg6 {[%clk
0:00:37.3]} 50. f7 {[%clk 0:01:25.1]} 50... Rcd3 {[%clk 0:00:36.9]} 51. Ra1
{[%clk 0:01:17.5]} 51... Rf8 {[%clk 0:00:26.9]} 52. Ra2+ {[%clk 0:01:17.3]}
52... Kc3 {[%clk 0:00:25.3]} 53. Ra3+ {[%clk 0:01:15]} 53... Kxc4 {[%clk
0:00:21.4]} 54. Rxd3 {[%clk 0:01:15.2]} 54... exd3+ {[%clk 0:00:23.3]} 55. Kxd2
{[%clk 0:01:16]} 55... Rxf7 {[%clk 0:00:24.9]} 56. Rh4+ {[%clk 0:01:16.3]} 56...
Kd5 {[%clk 0:00:25.7]} 57. f3 {[%clk 0:01:17.1]} 57... Bb5 {[%clk 0:00:26]} 58.
Rg4 {[%clk 0:01:17.9]} 58... Rf6 {[%clk 0:00:27.3]} 59. Rg5+ {[%clk 0:01:19]}
59... Kc4 {[%clk 0:00:28.6]} 60. Rg4+ {[%clk 0:01:20.1]} 60... Kb3 {[%clk
0:00:30.1]} 61. Rd4 {[%clk 0:01:19.2]} 61... Rb6 {[%clk 0:00:31.3]} 62. g4
{[%clk 0:01:19.6]} 62... a5 {[%clk 0:00:32.5]} 63. f4 {[%clk 0:01:21.1]} 63...
a4 {[%clk 0:00:34]} 64. f5 {[%clk 0:01:23]} 64... gxf5 {[%clk 0:00:34.6]} 65.
gxf5 {[%clk 0:01:22.8]} 65... a3 {[%clk 0:00:36.1]} 0-1

[Event "*** MasterClass Titled Tuesday Blitz"]
[Site "Chess.com"]
[Date "2017.12.05"]
[Round "1"]
[White "TenisMaster"]
[Black "michaelk123"]
[Result "1-0"]
[WhiteElo "2749"]
[BlackElo "2291"]
[TimeControl "180+2"]
[EndTime "14:24:25 PST"]
[Termination "TenisMaster won by resignation"]

1. e4 {[%clk 0:03:00.2]} 1... c6 {[%clk 0:03:00.1]} 2. d4 {[%clk 0:03:00.1]}
2... d5 {[%clk 0:03:01]} 3. e5 {[%clk 0:03:00.4]} 3... Bf5 {[%clk 0:03:00.7]} 4.
Nf3 {[%clk 0:03:01.3]} 4... e6 {[%clk 0:03:00.4]} 5. Be2 {[%clk 0:03:01.9]} 5...
Ne7 {[%clk 0:02:58.7]} 6. O-O {[%clk 0:03:00.2]} 6... h6 {[%clk 0:02:54.8]} 7.
Nbd2 {[%clk 0:02:57.9]} 7... Bh7 {[%clk 0:02:45.7]} 8. Nb3 {[%clk 0:02:49.3]}
8... Nf5 {[%clk 0:02:44.9]} 9. Bf4 {[%clk 0:02:43.2]} 9... Be7 {[%clk
0:02:45.3]} 10. g4 {[%clk 0:02:36.5]} 10... Nh4 {[%clk 0:02:44.3]} 11. Nxh4
{[%clk 0:02:36.5]} 11... Bxh4 {[%clk 0:02:45.1]} 12. Bg3 {[%clk 0:02:38.1]}
12... Nd7 {[%clk 0:02:41]} 13. f4 {[%clk 0:02:34.5]} 13... Be4 {[%clk
0:02:38.2]} 14. c3 {[%clk 0:02:24.2]} 14... f5 {[%clk 0:02:18.2]} 15. exf6
{[%clk 0:02:00.2]} 15... Bxg3 {[%clk 0:02:06.5]} 16. hxg3 {[%clk 0:01:54]} 16...
gxf6 {[%clk 0:02:05.1]} 17. Bd3 {[%clk 0:01:47.5]} 17... Bxd3 {[%clk 0:01:45.2]}
18. Qxd3 {[%clk 0:01:47.6]} 18... Kf7 {[%clk 0:01:46.8]} 19. Rae1 {[%clk
0:01:43.5]} 19... Qg8 {[%clk 0:01:47.5]} 20. Qe2 {[%clk 0:01:08]} 20... Re8
{[%clk 0:01:48.2]} 21. Kf2 {[%clk 0:01:08.6]} 21... Qg6 {[%clk 0:01:45.5]} 22.
Rh1 {[%clk 0:01:09]} 22... e5 {[%clk 0:01:36.2]} 23. f5 {[%clk 0:01:03.8]} 23...
Qg5 {[%clk 0:01:22]} 24. Qf3 {[%clk 0:00:49.6]} 24... Reg8 {[%clk 0:00:33.6]}
25. Rh4 {[%clk 0:00:46]} 25... b6 {[%clk 0:00:29.1]} 26. Reh1 {[%clk 0:00:43.7]}
26... a5 {[%clk 0:00:25]} 27. a4 {[%clk 0:00:40.1]} 27... Rg7 {[%clk 0:00:23.7]}
28. Qe3 {[%clk 0:00:29.5]} 28... Qxe3+ {[%clk 0:00:20.6]} 29. Kxe3 {[%clk
0:00:31.4]} 29... Rhg8 {[%clk 0:00:20.9]} 30. Kf3 {[%clk 0:00:29.6]} 30... c5
{[%clk 0:00:21.5]} 31. Rxh6 {[%clk 0:00:27.5]} 31... Rxg4 {[%clk 0:00:21.4]} 32.
Rh7+ {[%clk 0:00:28.4]} 32... R4g7 {[%clk 0:00:21.7]} 33. Rxg7+ {[%clk
0:00:29.1]} 33... Rxg7 {[%clk 0:00:22.6]} 34. Rh8 {[%clk 0:00:25.8]} 34... c4
{[%clk 0:00:15.6]} 35. Nd2 {[%clk 0:00:24.1]} 35... Rg8 {[%clk 0:00:12.3]} 36.
Rh7+ {[%clk 0:00:21.8]} 36... Rg7 {[%clk 0:00:13.1]} 37. Rh8 {[%clk 0:00:22.1]}
37... Rg8 {[%clk 0:00:13.2]} 38. Rxg8 {[%clk 0:00:22.7]} 38... Kxg8 {[%clk
0:00:13.6]} 39. Nf1 {[%clk 0:00:24.3]} 39... exd4 {[%clk 0:00:12.8]} 40. cxd4
{[%clk 0:00:24.6]} 40... b5 {[%clk 0:00:13.7]} 41. axb5 {[%clk 0:00:24.7]} 41...
a4 {[%clk 0:00:14.8]} 42. Ne3 {[%clk 0:00:24.2]} 42... Nb6 {[%clk 0:00:13.9]}
43. Nd1 {[%clk 0:00:24.5]} 43... Kg7 {[%clk 0:00:13.2]} 44. Nc3 {[%clk
0:00:25.2]} 44... Kh6 {[%clk 0:00:14]} 45. Kg4 {[%clk 0:00:26.5]} 45... Kh7
{[%clk 0:00:08.7]} 46. Kh5 {[%clk 0:00:26.2]} 46... Kg7 {[%clk 0:00:09.6]} 47.
g4 {[%clk 0:00:27.5]} 47... Kh7 {[%clk 0:00:10.2]} 48. g5 {[%clk 0:00:28.4]}
48... Kg7 {[%clk 0:00:11]} 49. g6 {[%clk 0:00:22]} 49... Nc8 {[%clk 0:00:10.2]}
50. Nxd5 {[%clk 0:00:21.6]} 50... Nd6 {[%clk 0:00:10.6]} 51. b6 {[%clk
0:00:22.9]} 51... Nb7 {[%clk 0:00:07.7]} 52. Kg4 {[%clk 0:00:23.1]} 52... Nd6
{[%clk 0:00:08.4]} 53. Nc3 {[%clk 0:00:24.2]} 53... a3 {[%clk 0:00:05.6]} 54.
bxa3 {[%clk 0:00:24.6]} 1-0

[Event "*** MasterClass Titled Tuesday Blitz"]
[Site "Chess.com"]
[Date "2017.12.05"]
[Round "1"]
[White "Dr_Nezard"]
[Black "wonderfultime"]
[Result "0-1"]
[WhiteElo "2291"]
[BlackElo "2754"]
[TimeControl "180+2"]
[EndTime "14:24:26 PST"]
[Termination "wonderfultime won by resignation"]

1. Nf3 {[%clk 0:03:00]} 1... d5 {[%clk 0:02:58.3]} 2. g3 {[%clk 0:02:59.6]} 2...
Nf6 {[%clk 0:02:57.9]} 3. Bg2 {[%clk 0:03:00.7]} 3... Bf5 {[%clk 0:02:57.7]} 4.
O-O {[%clk 0:03:01.7]} 4... e6 {[%clk 0:02:58.6]} 5. c4 {[%clk 0:03:02.1]} 5...
c6 {[%clk 0:02:59.4]} 6. Qb3 {[%clk 0:03:02.4]} 6... Qb6 {[%clk 0:03:00]} 7. d3
{[%clk 0:03:03.4]} 7... Nbd7 {[%clk 0:03:00.7]} 8. Be3 {[%clk 0:02:58.2]} 8...
Qa6 {[%clk 0:03:01.4]} 9. cxd5 {[%clk 0:02:40.2]} 9... exd5 {[%clk 0:03:00.7]}
10. Nbd2 {[%clk 0:02:27.2]} 10... Be7 {[%clk 0:02:56]} 11. Rfe1 {[%clk
0:02:13.6]} 11... O-O {[%clk 0:02:56.4]} 12. a3 {[%clk 0:02:11]} 12... Rfe8
{[%clk 0:02:57.1]} 13. Bf4 {[%clk 0:02:04.2]} 13... Bg6 {[%clk 0:02:54.3]} 14.
Nh4 {[%clk 0:02:01.7]} 14... Bf8 {[%clk 0:02:49.4]} 15. Nxg6 {[%clk 0:02:02.4]}
15... hxg6 {[%clk 0:02:51.3]} 16. Qc2 {[%clk 0:01:57.2]} 16... Qb6 {[%clk
0:02:44.2]} 17. Nf3 {[%clk 0:01:44.9]} 17... Bc5 {[%clk 0:02:32]} 18. e3 {[%clk
0:01:30.3]} 18... Nh5 {[%clk 0:02:28.1]} 19. d4 {[%clk 0:01:20.1]} 19... Bf8
{[%clk 0:02:28.4]} 20. Ne5 {[%clk 0:01:18]} 20... Rad8 {[%clk 0:02:20]} 21. Bg5
{[%clk 0:01:04.5]} 21... Be7 {[%clk 0:02:16]} 22. Nxd7 {[%clk 0:00:50.1]} 22...
Rxd7 {[%clk 0:02:16.7]} 23. Bxe7 {[%clk 0:00:51.5]} 23... Rdxe7 {[%clk
0:02:18.6]} 24. b4 {[%clk 0:00:51.1]} 24... Nf6 {[%clk 0:02:17.9]} 25. Reb1
{[%clk 0:00:46.4]} 25... a6 {[%clk 0:02:05.2]} 26. a4 {[%clk 0:00:47.2]} 26...
Rc8 {[%clk 0:00:40.5]} 27. Qc5 {[%clk 0:00:45]} 27... Qd8 {[%clk 0:00:40.3]} 28.
Qc2 {[%clk 0:00:26.3]} 28... Qd6 {[%clk 0:00:31.4]} 29. Qc5 {[%clk 0:00:25.4]}
29... Qc7 {[%clk 0:00:29.5]} 30. b5 {[%clk 0:00:20.9]} 30... axb5 {[%clk
0:00:24.6]} 31. axb5 {[%clk 0:00:21.8]} 31... Qd7 {[%clk 0:00:20.6]} 32. bxc6
{[%clk 0:00:22.2]} 32... Rxc6 {[%clk 0:00:22.5]} 33. Ra8+ {[%clk 0:00:17]} 33...
Kh7 {[%clk 0:00:23.3]} 34. Qa3 {[%clk 0:00:15.7]} 34... Qf5 {[%clk 0:00:21.4]}
35. Qa2 {[%clk 0:00:14.2]} 35... Rc2 {[%clk 0:00:20.8]} 36. Rf1 {[%clk
0:00:03.5]} 36... Rxa2 {[%clk 0:00:20.5]} 37. Rxa2 {[%clk 0:00:05.4]} 37... Rc7
{[%clk 0:00:22.4]} 38. Rb2 {[%clk 0:00:06.8]} 38... Ne4 {[%clk 0:00:20.6]} 39.
h3 {[%clk 0:00:08.1]} 39... Ng5 {[%clk 0:00:20.7]} 40. Kh2 {[%clk 0:00:08.5]}
40... Nf3+ {[%clk 0:00:21.6]} 41. Kh1 {[%clk 0:00:09.2]} 41... Ng5 {[%clk
0:00:16.7]} 42. Kh2 {[%clk 0:00:09.8]} 42... Ne4 {[%clk 0:00:17.8]} 43. Kg1
{[%clk 0:00:06.5]} 43... Nf6 {[%clk 0:00:18.9]} 44. Rfb1 {[%clk 0:00:07]} 44...
Rc2 {[%clk 0:00:17.9]} 45. Rxc2 {[%clk 0:00:07.3]} 45... Qxc2 {[%clk 0:00:19.8]}
46. Rxb7 {[%clk 0:00:08.8]} 46... Qc1+ {[%clk 0:00:20]} 47. Kh2 {[%clk
0:00:05.6]} 47... Qd2 {[%clk 0:00:20.9]} 48. Rxf7 {[%clk 0:00:04.7]} 48... Qxf2
{[%clk 0:00:21.8]} 49. e4 {[%clk 0:00:04.8]} 49... dxe4 {[%clk 0:00:21.8]} 0-1

[Event "*** MasterClass Titled Tuesday Blitz"]
[Site "Chess.com"]
[Date "2017.12.05"]
[Round "1"]
[White "jcibarra"]
[Black "johannesh"]
[Result "1-0"]
[WhiteElo "2680"]
[BlackElo "2264"]
[TimeControl "180+2"]
[EndTime "14:24:36 PST"]
[Termination "jcibarra won on time"]

1. e4 {[%clk 0:03:01.9]} 1... e6 {[%clk 0:02:56.1]} 2. d4 {[%clk 0:03:02.5]}
2... d5 {[%clk 0:02:56.8]} 3. Bd3 {[%clk 0:03:03.7]} 3... dxe4 {[%clk
0:02:55.2]} 4. Bxe4 {[%clk 0:03:04.9]} 4... Nf6 {[%clk 0:02:56]} 5. Bf3 {[%clk
0:03:06.1]} 5... c5 {[%clk 0:02:56.7]} 6. Ne2 {[%clk 0:03:06.4]} 6... Nc6 {[%clk
0:02:56.1]} 7. Be3 {[%clk 0:03:07.2]} 7... Nd5 {[%clk 0:02:47.4]} 8. Bxd5 {[%clk
0:03:07]} 8... Qxd5 {[%clk 0:02:39.8]} 9. Nbc3 {[%clk 0:03:07.7]} 9... Qxg2
{[%clk 0:02:26.8]} 10. Rg1 {[%clk 0:03:08.3]} 10... Qxh2 {[%clk 0:02:25.1]} 11.
Bf4 {[%clk 0:03:09.4]} 11... Qh5 {[%clk 0:02:24.6]} 12. Nb5 {[%clk 0:03:09.9]}
12... Kd8 {[%clk 0:02:00.8]} 13. Bc7+ {[%clk 0:02:53.2]} 13... Ke8 {[%clk
0:01:41]} 14. Bf4 {[%clk 0:02:42.5]} 14... Kd8 {[%clk 0:01:36.5]} 15. dxc5+
{[%clk 0:02:19.2]} 15... Bd7 {[%clk 0:01:25.5]} 16. Qd2 {[%clk 0:02:19.3]} 16...
Qd5 {[%clk 0:01:19.2]} 17. Qxd5 {[%clk 0:01:37.7]} 17... exd5 {[%clk 0:01:19.5]}
18. Nd6 {[%clk 0:01:39.6]} 18... Bxd6 {[%clk 0:01:07.6]} 19. Bxd6 {[%clk
0:01:40.6]} 19... g6 {[%clk 0:01:06.8]} 20. O-O-O {[%clk 0:01:40.4]} 20... Be6
{[%clk 0:01:01.6]} 21. Nf4 {[%clk 0:01:30.2]} 21... Kd7 {[%clk 0:00:49]} 22. c4
{[%clk 0:01:02.9]} 22... d4 {[%clk 0:00:49.2]} 23. Nd5 {[%clk 0:01:02.6]} 23...
h5 {[%clk 0:00:24.6]} 24. b4 {[%clk 0:01:02.1]} 24... Bxd5 {[%clk 0:00:24.1]}
25. cxd5 {[%clk 0:01:03.2]} 25... Nxb4 {[%clk 0:00:23.9]} 26. Rxd4 {[%clk
0:01:04.7]} 26... a5 {[%clk 0:00:23]} 27. a3 {[%clk 0:01:02.6]} 27... Na6 {[%clk
0:00:23.5]} 28. Rf4 {[%clk 0:01:03.4]} 28... Rh7 {[%clk 0:00:19.7]} 29. Re1
{[%clk 0:01:00.9]} 29... Nxc5 {[%clk 0:00:07]} 30. Bxc5 {[%clk 0:00:55.4]} 30...
Rc8 {[%clk 0:00:08.3]} 31. Rc4 {[%clk 0:00:49.9]} 31... b6 {[%clk 0:00:04.6]}
32. Re7+ {[%clk 0:00:50.2]} 32... Kd8 {[%clk 0:00:06]} 33. Bxb6+ {[%clk
0:00:48.9]} 33... Kxe7 {[%clk 0:00:07.5]} 34. Rxc8 {[%clk 0:00:50.3]} 34... h4
{[%clk 0:00:09.4]} 35. Kd2 {[%clk 0:00:41.1]} 35... h3 {[%clk 0:00:08.5]} 36.
Rc1 {[%clk 0:00:41.9]} 36... Kd6 {[%clk 0:00:08.9]} 37. Bxa5 {[%clk 0:00:38.6]}
37... Kxd5 {[%clk 0:00:08.3]} 38. Bc7 {[%clk 0:00:37.4]} 38... Ke4 {[%clk
0:00:05]} 39. Ke2 {[%clk 0:00:37.5]} 39... h2 {[%clk 0:00:03.1]} 40. Rh1 {[%clk
0:00:37.1]} 40... f5 {[%clk 0:00:04.6]} 41. f3+ {[%clk 0:00:35.1]} 41... Kd5
{[%clk 0:00:04.5]} 42. Bxh2 {[%clk 0:00:36.4]} 42... f4 {[%clk 0:00:04.5]} 43.
Rd1+ {[%clk 0:00:37.1]} 43... Ke5 {[%clk 0:00:05.7]} 44. Bg1 {[%clk 0:00:38.4]}
44... g5 {[%clk 0:00:06.2]} 45. Rb1 {[%clk 0:00:37.9]} 45... Re7 {[%clk
0:00:05.2]} 46. a4 {[%clk 0:00:34.5]} 46... Kf6+ {[%clk 0:00:05.3]} 47. Kf1
{[%clk 0:00:35.8]} 47... g4 {[%clk 0:00:05.1]} 48. fxg4 {[%clk 0:00:36.4]} 48...
Kg5 {[%clk 0:00:06]} 49. a5 {[%clk 0:00:37]} 49... Kxg4 {[%clk 0:00:06]} 50. a6
{[%clk 0:00:38.3]} 50... Kg3 {[%clk 0:00:04.3]} 51. a7 {[%clk 0:00:39.1]} 51...
Re8 {[%clk 0:00:05]} 52. Rb8 {[%clk 0:00:39]} 52... Rc8 {[%clk 0:00:05.8]} 53.
Rxc8 {[%clk 0:00:39.7]} 1-0